bitfinex-derivatives/quotes_SOLF0:USTF0_20241216
["timestamp","ask_amount","ask_price","bid_price","bid_amount"]
[1734353309120,2.62,214.37,214.28,5.00654479]
[1734353309313,3.0221,214.36,214.21,21.03655279]
[1734353309516,2.334,214.3,214.23,2.3347]
[1734353309719,3.0221,214.36,214.24,5.01048879]
[1734353309923,3.0221,214.36,214.23,2.3347]
[1734353310116,3.0221,214.36,214.24,5.01099427]
[1734353310316,3.0221,214.36,214.23,2.3347]
[1734353310519,18.41655279,214.34,214.24,5.012148]
[1734353310713,2.3345,214.25,214.19,2.3351]
[1734353311021,2.3345,214.25,214.2,5.01570472]
[1734353311317,2.62,214.28,214.15,2.62]
[1734353311516,2.62,214.28,214.16,5.01510922]
[1734353311723,2.62,214.28,214.17,5.01510922]
[1734353312022,2.62,214.28,214.18,5.01510922]
[1734353312324,2.3348,214.22,214.15,8.28412214]
[1734353312519,2.3348,214.22,214.16,5.01266696]
[1734353312722,2.3348,214.22,214.17,5.01266696]
[1734353312924,2.3348,214.22,214.18,5.01266696]
[1734353313120,2.3348,214.22,214.15,8.28412214]
[1734353313323,2.3348,214.22,214.16,5.0111249]
[1734353313626,2.3348,214.22,214.17,5.0111249]
[1734353313823,2.3348,214.22,214.16,2.3355]
[1734353314023,2.3348,214.22,214.17,5.01055123]
[1734353314224,2.3348,214.22,214.16,2.3355]
[1734353314424,2.62,214.28,214.17,5.00955209]
[1734353314626,2.3349,214.21,214.16,2.3355]
[1734353315228,2.62,214.22,214.09,4.5875]
[1734353315420,2.62,214.21,214.09,4.5875]
[1734353315726,2.62,214.2,214.1,10.60895128]
[1734353315921,2.62,214.2,214.11,5.00839286]
[1734353316117,2.62,214.2,214.12,5.00839286]
[1734353316423,2.62,214.23,214.13,5.00839286]
[1734353316616,2.62,214.23,214.16,2.3354]
[1734353316617,4.9548,214.23,214.16,2.3354]
[1734353316814,1.5408,214.27,214.17,5.00636716]
[1734353317019,2.62,214.27,214.18,5.00445261]
[1734353317222,2.62,214.27,214.19,5.00445261]
[1734353317417,2.62,214.27,214.19,2.335]
[1734353317617,2.62,214.27,214.15,18.41655279]
[1734353317923,2.62,214.27,214.16,5.00509012]
[1734353318227,2.62,214.27,214.17,5.00545844]
[1734353318626,2.62,214.27,214.16,2.3355]
[1734353318821,2.62,214.27,214.17,5.00788228]
[1734353319023,2.3351,214.2,214.15,18.41655279]
[1734353319322,2.62,214.22,214.13,2.62]
[1734353319526,2.62,214.22,214.14,5.0094598]
[1734353319722,2.62,214.22,214.15,5.0094598]
[1734353319922,2.62,214.22,214.13,2.62]
[1734353320126,2.62,214.22,214.14,5.0099232]
[1734353320329,2.3353,214.19,214.15,5.0099232]
[1734353320522,2.3353,214.19,214.14,2.3357]
[1734353320718,2.335,214.21,214.16,2.3354]
[1734353321024,2.335,214.21,214.15,18.41655279]
[1734353321226,2.335,214.21,214.16,5.00509929]
[1734353321524,2.62,214.26,214.1,5.60055842]
[1734353321725,21.03655279,214.26,214.11,5.00381811]
[1734353321921,21.03655279,214.26,214.12,5.00381811]
[1734353322124,21.03655279,214.26,214.13,2.3358]
[1734353323132,21.03655279,214.26,213.92,25.65831656]
[1734353323133,18.41655279,214.22,213.92,25.65831656]
[1734353323424,5.7038,214.21,214.01,18.41655279]
[1734353323620,2.3362,214.09,214.02,7.62981534]
[1734353323824,2.3362,214.09,214.03,5.00981534]
[1734353324025,2.62,214.14,214.04,5.00981534]
[1734353324224,2.62,214.14,214.05,5.00981534]
[1734353324433,2.62,214.16,214.03,26.71281717]
[1734353324619,3.0838,214.21,214.09,2.3362]
[1734353324620,2.3357,214.15,214.09,2.3362]
[1734353324827,2.3357,214.15,214.08,2.62]
[1734353325030,2.62,214.2,214.08,2.62]
[1734353325220,2.3355,214.16,214.11,18.41655279]
[1734353325421,2.62,214.2,214.11,18.41655279]
[1734353325627,2.62,214.2,214.12,5.00764925]
[1734353325931,2.62,214.2,214.11,18.41655279]
[1734353326127,2.3352,214.19,214.15,2.3355]
[1734353326328,5.64064069,214.23,214.11,18.41655279]
[1734353326329,2.62,214.24,214.11,18.41655279]
[1734353326528,2.62,214.24,214.12,5.00637808]
[1734353326723,2.62,214.24,214.13,7.62637808]
[1734353326926,2.62,214.24,214.14,5.00637808]
[1734353327232,1.5053,214.27,214.17,2.3354]
[1734353327429,2.62,214.26,214.15,18.41655279]
[1734353327834,2.62,214.26,214.16,5.00587329]
[1734353328033,2.62,214.26,214.19,2.3351]
[1734353328034,2.3346,214.24,214.19,2.3351]
[1734353328929,2.3344,214.26,214.2,18.41655279]
[1734353329129,2.62,214.29,214.2,21.03655279]
[1734353329333,1.5012,214.34,214.2,21.03655279]
[1734353329533,2.62,214.33,214.23,2.3347]
[1734353329833,2.62,214.33,214.21,2.9389]
[1734353330038,1.5012,214.34,214.22,4.99997445]
[1734353330236,1.5489,214.35,214.23,4.99885199]
[1734353330435,2.74,214.37,214.27,2.3342]
[1734353330632,18.41655279,214.42,214.26,2.74]
[1734353330830,7.28,214.43,214.28,18.41655279]
[1734353331035,7.28,214.43,214.29,4.99479706]
[1734353331235,2.3331,214.38,214.33,2.3336]
[1734353331431,4.2541,214.43,214.31,2.74]
[1734353331639,4.2541,214.43,214.32,1.5834]
[1734353332139,8.38101214,214.43,214.32,3.0869]
[1734353333038,2.333,214.39,214.32,3.0869]
[1734353333941,2.333,214.39,214.32,5.4205]
[1734353334439,2.333,214.39,214.33,2.3336]
[1734353337536,2.333,214.39,214.34,2.3335]
[1734353338335,8.38101214,214.43,214.32,3.0869]
[1734353338534,8.38101214,214.43,214.3,2.74]
[1734353338535,18.41655279,214.42,214.3,2.74]
[1734353338734,2.3333,214.36,214.3,5.0739]
[1734353338937,1.4586,214.41,214.3,2.74]
[1734353339342,2.333,214.39,214.33,2.3336]
[1734353340042,2.333,214.39,214.34,2.3335]
[1734353341942,2.3327,214.41,214.36,2.3332]
[1734353342245,2.74,214.44,214.35,2.74]
[1734353342646,2.3327,214.42,214.37,2.3331]
[1734353343242,2.74,214.47,214.34,18.41655279]
[1734353343243,2.74,214.48,214.34,18.41655279]
[1734353343546,2.74,214.48,214.35,2.74]
[1734353343937,2.3326,214.43,214.38,2.333]
[1734353344138,2.3326,214.43,214.35,2.74]
[1734353344542,2.74,214.48,214.34,18.41655279]
[1734353344846,2.74,214.48,214.34,2.74]
[1734353345047,2.333,214.39,214.35,2.3334]
[1734353345648,2.3324,214.44,214.37,2.3332]
[1734353345841,5.73880637,214.47,214.34,2.74]
[1734353346250,2.3325,214.43,214.37,2.3331]
[1734353346447,2.3325,214.43,214.34,2.74]
[1734353346744,2.3323,214.46,214.41,2.3327]
[1734353346952,2.74,214.49,214.41,2.3327]
[1734353347449,2.3323,214.46,214.42,2.3326]
[1734353348041,5.63629768,214.5,214.4,2.74]
[1734353348242,2.3323,214.45,214.41,2.3327]
[1734353348643,5.63629768,214.5,214.4,2.74]
[1734353348848,2.3322,214.46,214.42,2.3326]
[1734353349150,5.63629768,214.5,214.4,2.74]
[1734353349350,2.3323,214.45,214.41,2.3327]
[1734353349648,18.41655279,214.54,214.4,2.74]
[1734353349852,18.41655279,214.58,214.41,1.5627]
[1734353350048,2.74,214.57,214.41,4.6469]
[1734353350353,2.3317,214.51,214.47,2.3321]
[1734353350646,2.74,214.57,214.47,2.3321]
[1734353350852,2.74,214.57,214.48,2.332]
[1734353350853,2.3314,214.54,214.48,2.332]
[1734353351054,5.61422687,214.56,214.46,2.74]
[1734353351447,2.3324,214.45,214.37,2.74]
[1734353351853,2.3325,214.44,214.4,2.3328]
[1734353352162,2.3325,214.44,214.37,2.74]
[1734353352163,2.74,214.51,214.37,2.74]
[1734353353054,2.332,214.48,214.44,2.3324]
[1734353353250,2.74,214.51,214.39,18.41655279]
[1734353354054,2.3322,214.47,214.43,2.3325]
[1734353354355,2.74,214.51,214.35,23.02615279]
[1734353354556,2.74,214.51,214.36,7.72017774]
[1734353354757,2.3326,214.43,214.39,2.3329]
[1734353356056,2.3323,214.45,214.41,2.3327]
[1734353356256,2.74,214.51,214.41,2.3327]
[1734353356658,2.3324,214.44,214.4,2.3329]
[1734353358356,2.74,214.51,214.38,2.74]
[1734353358958,2.3328,214.41,214.38,5.0731]
[1734353359154,2.3328,214.41,214.38,2.74]
[1734353359465,21.52715279,214.5,214.35,3.0735]
[1734353359662,18.41655279,214.46,214.31,18.41655279]
[1734353359861,2.74,214.45,214.31,18.41655279]
[1734353360160,2.3334,214.36,214.31,20.75025279]
[1734353360359,2.74,214.45,214.27,18.41655279]
[1734353360558,2.74,214.45,214.28,2.68]
[1734353360759,2.3334,214.35,214.31,2.3338]
[1734353361164,2.3334,214.35,214.3,5.7085958]
[1734353361165,2.74,214.45,214.3,5.7085958]
[1734353362363,2.3334,214.35,214.31,2.3338]
[1734353362563,2.74,214.45,214.31,2.3338]
[1734353363656,2.68,214.44,214.34,2.3335]
[1734353363856,2.3332,214.37,214.3,5.7085958]
[1734353364060,2.68,214.44,214.3,5.7085958]
[1734353364567,2.3334,214.36,214.3,5.7085958]
[1734353364760,2.68,214.44,214.3,5.7085958]
[1734353364962,2.68,214.44,214.32,2.3336]
[1734353365463,2.3333,214.36,214.32,2.3336]
[1734353367162,2.68,214.44,214.3,5.7085958]
[1734353367361,18.41655279,214.42,214.27,21.09655279]
[1734353367567,18.41655279,214.42,214.28,5.00772357]
[1734353367867,3.095,214.41,214.24,3.0896]
[1734353368167,3.095,214.41,214.25,5.00807603]
[1734353368168,18.41655279,214.38,214.25,5.00807603]
[1734353368366,2.68,214.37,214.24,1.5664]
[1734353368567,2.68,214.37,214.26,5.00863705]
[1734353368767,2.3343,214.27,214.24,1.5664]
[1734353369268,2.3343,214.27,214.25,5.01926493]
[1734353369468,18.41655279,214.38,214.24,1.5664]
[1734353369669,2.68,214.37,214.25,5.01926428]
[1734353369869,2.68,214.37,214.24,1.5664]
[1734353370166,2.3336,214.34,214.25,5.01922748]
[1734353370364,2.68,214.37,214.26,5.01922748]
[1734353370565,2.68,214.37,214.2,4.2634]
[1734353370566,18.41655279,214.33,214.2,4.2634]
[1734353370764,18.41655279,214.33,214.21,5.02434605]
[1734353370765,2.3348,214.23,214.21,5.02434605]
[1734353370965,2.3348,214.23,214.22,5.02434605]
[1734353371661,2.3348,214.23,214.22,5.02582466]
[1734353371878,2.3346,214.25,214.19,1.6061]
[1734353372063,5.6483,214.32,214.2,5.02582439]
[1734353372264,5.6483,214.32,214.21,5.02582439]
[1734353372466,2.3347,214.23,214.22,5.02582439]
[1734353372867,5.6483,214.32,214.19,1.6061]
[1734353373067,5.6483,214.32,214.2,5.02694447]
[1734353373371,5.6483,214.32,214.21,5.02694447]
[1734353373570,2.3342,214.29,214.19,1.6061]
[1734353373767,5.6483,214.32,214.2,5.02685411]
[1734353373971,5.6483,214.32,214.21,5.02685411]
[1734353374274,5.6483,214.32,214.19,1.6061]
[1734353374471,5.71502272,214.3,214.2,5.02626279]
[1734353374771,5.71502272,214.3,214.19,1.6061]
[1734353374966,5.71502272,214.3,214.2,5.02620185]
[1734353375174,5.71502272,214.3,214.21,5.02620185]
[1734353375371,5.71502272,214.3,214.19,1.6061]
[1734353375676,5.71502272,214.3,214.2,5.02442996]
[1734353375965,5.71502272,214.3,214.19,1.6061]
[1734353376168,24.13157551,214.3,214.2,5.02453808]
[1734353376373,24.13157551,214.3,214.02,6.41457914]
[1734353376374,18.41655279,214.26,214.12,1.4599]
[1734353376569,18.41655279,214.26,214.07,18.41655279]
[1734353376570,2.68,214.25,214.13,5.02247144]
[1734353376769,2.68,214.25,214.14,5.02247144]
[1734353376972,2.336,214.12,214.08,5.0163]
[1734353377172,2.68,214.19,214.09,5.02296411]
[1734353377371,18.41655279,214.28,214.1,5.02296411]
[1734353377372,2.68,214.18,214.1,5.02296411]
[1734353377673,2.3361,214.11,214.07,24.03109464]
[1734353377888,2.3361,214.11,214.08,5.01807958]
[1734353378061,2.3361,214.11,214.07,24.03109464]
[1734353378062,2.3361,214.11,214.09,5.01807958]
[1734353378267,2.3361,214.11,214.07,24.03109464]
[1734353378467,2.68,214.18,214.08,5.01342738]
[1734353378666,2.68,214.18,214.09,5.01342738]
[1734353378866,2.68,214.18,214.1,5.01273721]
[1734353379066,2.68,214.18,214.11,5.01273721]
[1734353379264,3.048,214.21,214.07,5.61454185]
[1734353379463,3.048,214.21,214.08,5.00904407]
[1734353379675,3.048,214.21,214.07,5.61454185]
[1734353379972,3.048,214.21,214.08,5.00904238]
[1734353380273,2.3362,214.09,214.07,5.61454185]
[1734353381170,2.68,214.17,214.05,9.4885]
[1734353381171,2.3363,214.08,214.05,7.1518]
[1734353381375,2.3363,214.08,214.06,5.00157759]
[1734353381578,2.3363,214.08,214.05,7.1518]
[1734353381873,2.3362,214.1,214.06,5.00090248]
[1734353382076,2.68,214.17,214.05,7.1518]
[1734353382280,18.41655279,214.15,214.06,5.00087094]
[1734353382471,18.41655279,214.15,213.91,53.4]
[1734353382472,2.3369,214.04,213.99,20.75375279]
[1734353382672,2.92,214.11,214.0,4.99814873]
[1734353382973,2.92,214.11,214.01,4.99814873]
[1734353383277,2.92,214.11,214.0,7.84116388]
[1734353383673,2.92,214.11,214.01,4.99344194]
[1734353383873,2.92,214.11,214.0,5.50396388]
[1734353384078,2.3374,213.99,213.91,2.92]
[1734353384302,11.53753528,214.06,213.93,11.53753528]
[1734353384487,2.92,214.06,213.96,11.53753528]
[1734353384674,2.3371,214.01,213.96,11.53753528]
[1734353384873,2.92,214.06,213.96,11.53753528]
[1734353385281,2.3372,214.0,213.96,11.53753528]
[1734353385972,2.3372,214.0,213.95,5.52039919]
[1734353386174,2.92,214.06,213.93,18.46188328]
[1734353386974,3.1085,214.1,213.97,18.46188328]
[1734353387176,3.1085,214.1,213.98,4.4432]
[1734353387380,2.92,214.14,213.98,7.4405]
[1734353387676,2.92,214.14,213.98,4.4432]
[1734353387976,2.92,214.14,213.99,2.3373]
[1734353388474,2.92,214.14,213.98,4.4432]
[1734353388679,2.3366,214.06,214.01,2.3371]
[1734353388881,2.92,214.14,213.98,4.4432]
[1734353389178,2.3365,214.07,214.02,2.3369]
[1734353389379,2.3365,214.07,213.98,4.4432]
[1734353389979,2.3366,214.06,214.01,2.337]
[1734353390574,2.3366,214.06,214.0,2.3372]
[1734353390775,2.3366,214.06,213.98,4.4432]
[1734353391875,2.3364,214.08,213.98,4.4432]
[1734353392072,3.0033,214.15,213.98,4.4432]
[1734353392278,3.0033,214.15,214.01,18.46188328]
[1734353392477,3.0033,214.15,214.02,2.92]
[1734353392675,3.0033,214.15,214.03,2.3369]
[1734353393081,3.0033,214.15,214.02,2.92]
[1734353393775,3.0033,214.15,214.04,2.3368]
[1734353393776,2.3363,214.09,214.04,2.3368]
[1734353394078,3.0033,214.15,214.02,2.92]
[1734353394478,2.3364,214.08,214.04,2.3367]
[1734353394980,3.0033,214.15,214.03,2.3369]
[1734353395185,3.0033,214.15,213.98,1.5232]
[1734353395484,18.46188328,214.12,213.98,3.8606]
[1734353395688,2.3368,214.04,213.98,1.5232]
[1734353395983,2.3368,214.04,213.99,2.3372]
[1734353397579,2.92,214.11,213.98,1.5232]
[1734353398287,4.3992,214.11,213.98,1.5232]
[1734353398883,2.3364,214.08,213.98,1.5232]
[1734353399081,2.92,214.1,213.98,1.5232]
[1734353400084,2.337,214.02,213.98,3.8606]
[1734353400481,2.92,214.1,213.98,1.5232]
[1734353401483,2.3368,214.04,214.0,2.3372]
[1734353401689,3.0033,214.15,213.98,19.98508328]
[1734353401985,2.3368,214.04,213.99,7.3177057]
[1734353402189,2.3368,214.04,214.0,4.98299396]
[1734353402486,2.3368,214.04,213.98,19.98508328]
[1734353402684,2.3369,214.03,213.99,2.3373]
[1734353402887,2.92,214.14,213.98,19.98508328]
[1734353403080,2.92,214.14,213.99,4.98307849]
[1734353403284,2.3369,214.04,213.99,2.3373]
[1734353403482,18.46188328,214.12,213.98,19.98508328]
[1734353403982,18.46188328,214.12,213.94,5.55696234]
[1734353404189,18.46188328,214.08,213.95,4.98656125]
[1734353404381,2.92,214.07,213.94,5.55696234]
[1734353404580,2.92,214.07,213.95,4.98935582]
[1734353404783,2.92,214.07,213.89,0.40436]
[1734353404784,18.46188328,213.99,213.89,0.40436]
[1734353404986,2.92,213.98,213.9,4.98971342]
[1734353405191,2.92,213.98,213.89,0.40436]
[1734353405392,2.3381,213.92,213.9,4.99020681]
[1734353405686,18.46188328,213.95,213.89,0.40436]
[1734353405878,2.3383,213.9,213.89,0.40436]
[1734353407191,2.3382,213.91,213.89,0.40436]
[1734353407386,2.92,213.96,213.89,0.40436]
[1734353408090,14.47557635,213.96,213.89,0.40436]
[1734353408292,2.3383,213.9,213.89,0.40436]
[1734353408990,5.2583,213.9,213.89,0.40436]
[1734353410280,2.9739,213.95,213.89,0.40436]
[1734353410485,4.4066,213.95,213.89,0.40436]
[1734353411188,11.55557635,213.99,213.89,0.40436]
[1734353411494,2.92,213.97,213.89,0.40436]
[1734353411686,2.3383,213.9,213.89,0.40436]
[1734353414891,5.49946206,214.0,213.89,0.40436]
[1734353414892,2.3377,213.96,213.89,0.40436]
[1734353415104,11.55557635,213.98,213.89,0.40436]
[1734353415105,2.96,213.97,213.89,0.40436]
[1734353415392,2.96,213.97,213.9,4.99773211]
[1734353415588,2.338,213.93,213.89,0.40436]
[1734353415793,2.338,213.93,213.9,4.99732822]
[1734353415994,2.3381,213.93,213.91,4.99732822]
[1734353416189,2.3381,213.93,213.89,0.40436]
[1734353416391,2.3381,213.93,213.9,4.99923169]
[1734353416592,2.3381,213.93,213.91,4.99923169]
[1734353416794,2.96,213.99,213.89,0.40436]
[1734353416987,2.96,213.99,213.9,4.99910146]
[1734353417191,2.96,213.99,213.91,4.99910146]
[1734353417394,11.55557635,213.98,213.89,0.40436]
[1734353418093,1.468,214.03,213.89,11.95993635]
[1734353418293,1.468,214.03,213.92,11.55557635]
[1734353418491,1.468,214.03,213.93,5.00360374]
[1734353418693,1.468,214.03,213.93,2.3379]
[1734353419296,1.468,214.03,213.94,5.0062904]
[1734353419494,11.55557635,214.05,213.92,11.55557635]
[1734353419691,14.51557635,214.08,213.95,11.55557635]
[1734353419896,2.96,214.1,213.96,7.96676942]
[1734353420090,2.96,214.1,213.98,2.3373]
[1734353420298,2.337,214.02,213.98,2.3373]
[1734353420493,2.96,214.1,213.98,2.3373]
[1734353420703,11.55557635,214.05,213.99,5.00999606]
[1734353420900,2.3377,213.96,213.92,2.3381]
[1734353421094,2.96,214.04,213.93,5.01053386]
[1734353421294,2.3375,213.98,213.94,5.01053386]
[1734353421495,2.3375,213.98,213.95,5.01053386]
[1734353421701,2.96,214.04,213.96,5.01053386]
[1734353421902,2.337,214.02,213.98,2.3374]
[1734353422405,2.337,214.02,213.99,5.01521401]
[1734353422596,2.337,214.02,213.98,2.3374]
[1734353422905,2.3369,214.03,213.99,5.01585419]
[1734353423103,2.96,214.06,213.93,20.03182107]
[1734353423297,14.51557635,214.06,213.94,5.01677547]
[1734353423602,14.51557635,214.06,213.95,5.01677547]
[1734353423802,14.51557635,214.06,213.94,2.3378]
[1734353424003,14.51557635,214.06,213.95,5.01812462]
[1734353424203,2.3374,213.99,213.96,5.01812462]
[1734353424506,2.3374,213.99,213.94,2.3378]
[1734353424696,2.3374,213.99,213.95,5.02038111]
[1734353424902,14.51557635,214.06,213.96,5.02038111]
[1734353425107,2.3374,213.98,213.94,2.3378]
[1734353425307,2.3374,213.98,213.95,5.02155217]
[1734353425605,2.3375,213.97,213.96,5.02155217]
[1734353425812,2.96,214.0,213.9,1.4872]
[1734353426009,2.96,213.99,213.91,5.02265503]
[1734353426209,2.96,213.99,213.92,5.02265503]
[1734353426411,2.96,213.99,213.9,1.4872]
[1734353426607,2.96,213.99,213.91,5.02408329]
[1734353426813,2.96,213.99,213.92,5.02408329]
[1734353427108,2.96,213.99,213.9,1.4872]
[1734353427303,2.96,213.99,213.91,5.02563563]
[1734353427509,2.96,213.99,213.89,0.40436]
[1734353427510,11.55557635,213.96,213.89,0.40436]
[1734353427712,2.96,213.95,213.89,0.40436]
[1734353428416,1.454,214.01,213.89,0.40436]
[1734353428636,2.96,213.97,213.89,0.40436]
[1734353428812,2.3379,213.94,213.89,14.29833635]
[1734353429210,2.3379,213.94,213.9,1.5441]
[1734353430316,2.96,213.98,213.91,2.3382]
[1734353430512,1.45,214.02,213.91,2.3382]
[1734353430815,11.55557635,214.06,213.92,11.55557635]
[1734353431014,2.96,214.05,213.92,11.55557635]
[1734353431214,20.01666501,214.09,213.95,11.55557635]
[1734353431608,20.01666501,214.09,213.96,1.596]
[1734353431813,20.01666501,214.09,213.97,2.3375]
[1734353432013,11.55557635,214.12,213.98,11.55557635]
[1734353432210,2.96,214.11,213.99,1.4815]
[1734353432514,2.96,214.13,214.01,11.55557635]
[1734353432814,53.34396505,214.14,214.01,11.55557635]
[1734353432815,56.30396505,214.14,214.01,11.55557635]
[1734353433023,56.30396505,214.14,214.03,2.3368]
[1734353433219,2.96,214.14,214.04,11.55557635]
[1734353433413,2.3363,214.09,214.04,13.89237635]
[1734353433618,2.96,214.14,214.04,11.55557635]
[1734353434118,2.3363,214.09,214.04,11.55557635]
[1734353434422,2.96,214.14,214.04,11.55557635]
[1734353434622,2.3363,214.09,214.04,11.55557635]
[1734353435317,11.55557635,214.18,214.04,11.55557635]
[1734353435520,11.55557635,214.18,214.07,11.55557635]
[1734353435815,2.94,214.17,214.09,2.3362]
[1734353436015,2.3358,214.13,214.07,11.55557635]
[1734353436619,2.3357,214.15,214.07,11.55557635]
[1734353436915,5.54011589,214.2,214.1,11.55557635]
[1734353436916,2.94,214.2,214.1,11.55557635]
[1734353437117,2.94,214.2,214.13,11.55557635]
[1734353437118,2.3353,214.18,214.13,11.55557635]
[1734353437419,2.94,214.24,214.13,11.55557635]
[1734353437814,5.58331476,214.25,214.13,11.55557635]
[1734353438018,5.58331476,214.25,214.16,11.55557635]
[1734353438214,2.335,214.21,214.16,11.55557635]
[1734353439012,2.3348,214.23,214.16,14.49557635]
[1734353439419,5.63816498,214.28,214.16,14.49557635]
[1734353439621,2.3346,214.25,214.17,2.3353]
[1734353439818,5.63816498,214.28,214.17,2.3353]
[1734353440123,5.63816498,214.28,214.16,14.49557635]
[1734353440315,11.55557635,214.27,214.16,14.49557635]
[1734353440516,2.934,214.33,214.16,14.49557635]
[1734353440517,2.934,214.33,214.19,11.55557635]
[1734353440819,2.934,214.33,214.23,13.89027635]
[1734353440820,2.334,214.3,214.23,13.89027635]
[1734353441020,1.4663,214.33,214.23,11.55557635]
[1734353441517,2.3341,214.29,214.23,11.55557635]
[1734353441724,2.3341,214.29,214.22,5.2748]
[1734353441725,20.07879117,214.37,214.26,11.55557635]
[1734353441925,14.55557635,214.37,214.26,11.55557635]
[1734353442117,3.0,214.37,214.28,2.3341]
[1734353442318,5.58396682,214.39,214.26,11.55557635]
[1734353442718,2.3334,214.35,214.29,13.88967635]
[1734353443422,2.3334,214.35,214.29,11.55557635]
[1734353443622,2.3334,214.35,214.3,2.3339]
[1734353444121,2.3334,214.35,214.31,1.5212]
[1734353446026,2.3333,214.37,214.31,1.5212]
[1734353446222,2.3333,214.37,214.31,3.8549]
[1734353446423,2.3333,214.37,214.32,1.4775]
[1734353447122,2.3329,214.4,214.34,2.3335]
[1734353447635,2.3329,214.4,214.34,5.3335]
[1734353447815,2.3329,214.4,214.34,3.0]
[1734353448019,3.0,214.49,214.36,18.40349583]
[1734353448424,2.3324,214.45,214.36,18.40349583]
[1734353448625,19.91579583,214.53,214.36,18.40349583]
[1734353449228,1.5123,214.53,214.4,18.40349583]
[1734353449422,1.5123,214.53,214.41,4.4553]
[1734353449622,7.0847768,214.53,214.42,2.3326]
[1734353449925,7.0847768,214.53,214.41,4.4553]
[1734353450119,2.3323,214.45,214.41,4.4553]
[1734353450528,2.3326,214.42,214.41,1.4553]
[1734353451421,3.0,214.48,214.41,1.4553]
[1734353452325,2.3324,214.45,214.41,1.4553]
[1734353452930,2.3322,214.47,214.41,1.4553]
[1734353453126,1.5123,214.53,214.41,4.4553]
[1734353453326,2.3321,214.48,214.41,4.4553]
[1734353454422,2.3321,214.48,214.43,2.3325]
[1734353455630,1.5123,214.53,214.41,4.4553]
[1734353456329,1.5123,214.53,214.41,6.788]
[1734353456529,1.5123,214.53,214.41,4.4553]
[1734353457125,2.3321,214.47,214.43,2.3325]
[1734353457434,2.3321,214.47,214.41,4.4553]
[1734353457435,2.3321,214.47,214.42,1.5055]
[1734353458030,2.3321,214.47,214.43,2.3325]
[1734353458632,2.3318,214.51,214.44,18.40349583]
[1734353458831,5.62852516,214.58,214.48,18.40349583]
[1734353459033,1.5714,214.62,214.48,18.40349583]
[1734353459233,2.3312,214.56,214.48,18.40349583]
[1734353459422,1.5714,214.62,214.48,19.98589583]
[1734353459927,7.22792777,214.62,214.48,19.98589583]
[1734353460234,7.22792777,214.62,214.51,18.40349583]
[1734353460235,1.5714,214.62,214.51,18.40349583]
[1734353460531,3.0,214.66,214.52,2.978]
[1734353460731,3.0,214.66,214.53,3.0]
[1734353461429,5.5333204,214.65,214.53,3.0]
[1734353462028,2.3308,214.6,214.55,2.3311]
[1734353462832,5.5333204,214.65,214.53,5.3313]
[1734353463128,5.5333204,214.65,214.53,3.0]
[1734353463626,2.3313,214.54,214.53,3.0]
[1734353464026,5.5333204,214.65,214.52,2.978]
[1734353464235,8.5333204,214.65,214.52,2.978]
[1734353464832,3.0,214.65,214.52,2.978]
[1734353465035,3.0,214.66,214.52,2.978]
[1734353466130,3.0,214.66,214.55,13.80642055]
[1734353466728,2.3308,214.6,214.55,13.80642055]
[1734353466927,1.5714,214.68,214.58,11.47532055]
[1734353467125,2.3304,214.63,214.58,11.47532055]
[1734353467328,1.5714,214.68,214.58,11.47532055]
[1734353467528,11.47532055,214.72,214.58,11.47532055]
[1734353467529,5.50028745,214.7,214.58,11.47532055]
[1734353467727,5.50028745,214.7,214.56,3.0]
[1734353467728,5.50028745,214.7,214.61,11.47532055]
[1734353468221,2.3304,214.63,214.61,11.47532055]